bitfinex/quotes_SOLUSD_20251006
["timestamp","ask_amount","ask_price","bid_price","bid_amount"]
[1759769283911,1.93800268,235.38,235.33,29.78]
[1759769284099,2.43800268,235.38,235.33,29.78]
[1759769284535,2.43800268,235.38,235.34,29.78]
[1759769284811,14.87020435,235.37,235.34,29.78]
[1759769285006,15.37020435,235.37,235.34,29.78]
[1759769285413,0.5,235.36,235.34,29.78]
[1759769285586,0.5,235.36,235.33,29.78]
[1759769285785,16.80820703,235.37,235.33,29.78]
[1759769286805,4.24899086,235.35,235.33,29.78]
[1759769288591,4.24899086,235.35,235.29,0.66]
[1759769288592,0.5,235.34,235.29,0.66]
[1759769288793,54.79454942,235.39,235.26,20.8]
[1759769288794,1.93800268,235.32,235.26,0.66]
[1759769288993,1.93800268,235.31,235.27,29.8]
[1759769289711,2.43800268,235.31,235.27,29.8]
[1759769290100,14.8727319,235.33,235.24,0.2]
[1759769290101,1.93800268,235.28,235.24,0.2]
[1759769290302,1.93800268,235.27,235.24,30.0]
[1759769290489,0.5,235.26,235.24,0.2]
[1759769290696,2.43800268,235.26,235.24,0.2]
[1759769290924,6.1887997,235.25,235.24,0.2]
[1759769291619,4.25079702,235.25,235.24,0.2]
[1759769292513,6.1887997,235.25,235.24,0.2]
[1759769293316,6.6887997,235.25,235.24,0.2]
[1759769293512,4.25079702,235.25,235.24,0.2]
[1759769293814,6.1887997,235.25,235.24,0.2]
[1759769297615,12.75917065,235.25,235.24,0.86]
[1759769297821,4.24953255,235.32,235.24,0.86]
[1759769298017,4.24953255,235.32,235.25,0.71]
[1759769298716,4.24917141,235.34,235.25,0.71]
[1759769299621,4.24899086,235.35,235.25,0.71]
[1759769300612,4.24899086,235.35,235.25,4.96078143]
[1759769300811,4.24899086,235.35,235.26,0.71]
[1759769301013,4.24899086,235.35,235.27,29.8]
[1759769301214,4.24899086,235.35,235.28,0.71]
[1759769301922,6.18699354,235.35,235.29,29.8]
[1759769302134,4.24899086,235.35,235.3,0.71]
[1759769303029,14.87146802,235.35,235.24,0.2]
[1759769303216,1.93800268,235.32,235.25,30.51]
[1759769303417,1.93800268,235.32,235.26,0.71]
[1759769303736,1.93800268,235.31,235.26,0.71]
[1759769303906,1.93800268,235.31,235.25,29.8]
[1759769304310,1.93800268,235.31,235.26,30.51]
[1759769304525,1.93800268,235.31,235.27,0.71]
[1759769304712,16.8113666,235.32,235.27,0.71]
[1759769305517,4.24923322,235.34,235.28,0.71]
[1759769307508,4.24899086,235.35,235.28,0.71]
[1759769309713,4.24826883,235.39,235.29,20.8]
[1759769310046,12.751578,235.41,235.31,10.87647521]
[1759769310238,0.5,235.44,235.33,10.87647521]
[1759769310422,0.5,235.44,235.34,0.71]
[1759769310621,2.43800268,235.44,235.34,0.71]
[1759769310938,14.86641464,235.43,235.35,29.8]
[1759769311128,14.86641464,235.43,235.36,0.71]
[1759769312436,14.86641464,235.43,235.37,29.8]
[1759769313011,4.24754704,235.43,235.38,0.71]
[1759769313417,4.24754704,235.43,235.39,0.71]
[1759769313637,4.24754704,235.43,235.4,0.71]
[1759769314228,14.86452105,235.46,235.4,0.71]
[1759769315122,17.30252373,235.46,235.38,0.71]
[1759769315834,1.93800268,235.44,235.33,12.74778507]
[1759769316026,1.93800268,235.42,235.34,29.8]
[1759769316221,14.86704612,235.42,235.35,0.68]
[1759769316820,0.5,235.41,235.36,29.8]
[1759769317516,14.86704612,235.42,235.36,30.48]
[1759769318727,10.61931866,235.42,235.36,30.48]
[1759769321348,10.61931866,235.42,235.37,0.68]
[1759769321717,10.61931866,235.42,235.38,0.68]
[1759769321931,10.61931866,235.42,235.39,0.68]
[1759769322331,14.86515182,235.45,235.39,0.68]
[1759769322542,15.36515182,235.45,235.37,0.68]
[1759769322748,17.3031545,235.45,235.37,0.68]
[1759769324226,15.36515182,235.45,235.37,0.68]
[1759769324430,14.86515182,235.45,235.37,0.68]
[1759769325134,15.36515182,235.45,235.38,29.78]
[1759769325537,15.36515182,235.45,235.38,30.46]
[1759769326045,14.86515182,235.45,235.38,29.78]
[1759769326250,14.86515182,235.45,235.39,0.68]
[1759769327228,14.86515182,235.45,235.4,29.78]
[1759769327428,15.36515182,235.45,235.4,29.78]
[1759769328147,14.86515182,235.45,235.4,29.78]
[1759769328354,14.86515182,235.45,235.41,0.7]
[1759769328534,14.86515182,235.45,235.42,0.7]
[1759769328734,14.86515182,235.45,235.4,29.78]
[1759769328947,14.86515182,235.45,235.4,30.48]
[1759769329340,14.86515182,235.45,235.41,0.7]
[1759769331454,14.86515182,235.45,235.4,29.78]
[1759769331950,14.86515182,235.45,235.41,0.7]
[1759769332835,14.86515182,235.45,235.42,0.7]
[1759769333642,14.86515182,235.45,235.32,0.7]
[1759769333643,1.93800268,235.43,235.32,0.7]
[1759769333956,1.93800268,235.37,235.32,29.78]
[1759769334347,2.43800268,235.37,235.32,29.78]
[1759769334648,0.5,235.36,235.32,29.78]
[1759769335051,14.87146802,235.35,235.32,29.78]
[1759769335758,14.87146802,235.35,235.32,30.48]
[1759769335950,4.24899086,235.35,235.32,29.78]
[1759769336253,4.24899086,235.35,235.33,0.7]
[1759769337360,14.87020435,235.37,235.33,0.7]
[1759769338953,15.37020435,235.37,235.32,29.78]
[1759769339155,14.87020435,235.37,235.32,30.48]
[1759769339555,18.40114872,235.37,235.32,29.78]
[1759769340340,3.03094437,235.36,235.32,29.78]
[1759769340836,3.53094437,235.36,235.3,0.7]
[1759769341042,3.03094437,235.35,235.31,29.78]
[1759769341345,3.53094437,235.35,235.31,29.78]
[1759769341839,3.03094437,235.35,235.31,29.78]
[1759769342051,0.5,235.35,235.31,29.78]
[1759769342248,14.87209993,235.34,235.31,29.78]
[1759769343465,14.87209993,235.34,235.31,30.48]
[1759769344062,4.24917141,235.34,235.31,30.48]
[1759769344246,4.24826883,235.39,235.32,0.7]
[1759769344446,14.8689409,235.39,235.32,0.7]
[1759769345041,4.24826883,235.39,235.32,0.7]
[1759769346269,18.39862203,235.41,235.32,0.7]
[1759769348643,14.86767766,235.41,235.32,0.7]
[1759769349763,0.5,235.4,235.32,0.7]
[1759769349957,0.5,235.39,235.33,29.78]
[1759769350365,17.89862203,235.41,235.34,0.7]
[1759769350567,14.86767766,235.41,235.34,0.7]
[1759769350959,17.89862203,235.41,235.34,0.7]
[1759769352168,14.86767766,235.41,235.34,0.7]
[1759769353355,17.89862203,235.41,235.34,0.7]
[1759769353557,14.86767766,235.41,235.34,0.7]
[1759769353768,17.89862203,235.41,235.34,0.7]
[1759769354270,14.86767766,235.41,235.34,0.7]
[1759769356653,0.5,235.4,235.29,4.75978743]
[1759769356852,3.03094437,235.35,235.28,0.7]
[1759769357164,0.5,235.34,235.3,29.78]
[1759769357876,0.5,235.33,235.31,29.78]
[1759769358063,3.53094437,235.35,235.31,29.78]
[1759769358670,3.03094437,235.32,235.24,4.95978743]
[1759769358855,3.53094437,235.31,235.25,29.78]
[1759769360579,14.87462813,235.3,235.25,29.78]
[1759769360878,18.4055725,235.3,235.26,29.78]
[1759769361074,3.53094437,235.29,235.24,0.2]
[1759769361553,0.5,235.28,235.25,29.78]
[1759769361750,3.03094437,235.26,235.24,0.2]
[1759769361967,3.03094437,235.25,235.24,0.2]
[1759769362183,3.53094437,235.25,235.24,0.2]
[1759769362474,7.78174139,235.25,235.24,0.2]
[1759769362676,7.78174139,235.25,235.24,1e-08]
[1759769362862,18.6582166,235.25,235.24,1e-08]
[1759769363063,31.63502718,235.25,235.24,1e-08]
[1759769364782,20.75855197,235.25,235.24,1e-08]
[1759769365490,31.63502718,235.25,235.24,1e-08]
[1759769368572,28.60408281,235.25,235.24,1e-08]
[1759769368764,7.28174139,235.25,235.24,1e-08]
[1759769369072,28.08174139,235.25,235.24,1e-08]
[1759769369786,28.58174139,235.25,235.24,1e-08]
[1759769370977,28.08174139,235.25,235.24,1e-08]
[1759769371883,10.62487727,235.3,235.24,0.70000001]
[1759769372099,13.65582164,235.3,235.24,0.70000001]
[1759769372293,14.87477102,235.3,235.24,0.70000001]
[1759769372793,17.90571539,235.3,235.24,0.70000001]
[1759769372993,14.87477102,235.3,235.24,0.70000001]
[1759769373662,3.03094437,235.27,235.24,0.70000001]
[1759769373893,3.03094437,235.28,235.25,0.7]
[1759769374209,3.03094437,235.29,235.26,0.7]
[1759769374384,3.03094437,235.29,235.27,0.7]
[1759769374568,17.90571539,235.3,235.28,0.7]
[1759769375407,3.03094437,235.29,235.25,0.7]
[1759769375606,14.87477102,235.3,235.26,0.72]
[1759769375768,14.87477102,235.3,235.27,0.72]
[1759769375969,14.87477102,235.3,235.28,0.72]
[1759769376291,17.90571539,235.3,235.28,0.72]
[1759769379295,4.24971314,235.31,235.29,0.72]
[1759769379483,4.24971314,235.31,235.3,0.72]
[1759769381075,4.24971314,235.31,235.24,1e-08]
[1759769381276,14.873996,235.31,235.25,0.72]
[1759769381477,17.90494037,235.31,235.25,0.72]
[1759769382791,17.90494037,235.31,235.25,30.52]
[1759769382997,17.90494037,235.31,235.26,0.72]
[1759769383178,17.90494037,235.31,235.27,0.72]
[1759769383495,3.03094437,235.3,235.27,0.72]
[1759769383678,3.03094437,235.3,235.25,29.8]
[1759769383881,3.03094437,235.3,235.27,0.72]
[1759769384096,17.90494037,235.31,235.28,0.72]
[1759769384400,17.90494037,235.31,235.25,30.52]
[1759769384873,17.90494037,235.31,235.25,29.8]
[1759769385075,17.90494037,235.31,235.26,0.72]
[1759769385274,17.90494037,235.31,235.27,0.72]
[1759769385682,17.90494037,235.31,235.28,0.72]
[1759769387199,17.90494037,235.31,235.25,29.8]
[1759769387200,3.03094437,235.3,235.25,29.8]
[1759769387390,3.03094437,235.3,235.26,0.72]
[1759769387891,3.03094437,235.3,235.25,29.8]
[1759769388087,3.03094437,235.3,235.27,0.69]
[1759769388285,14.873996,235.31,235.28,0.69]
[1759769388482,4.24971314,235.31,235.29,0.69]
[1759769388687,4.24971314,235.31,235.3,0.69]
[1759769389201,17.90367627,235.33,235.3,0.69]
[1759769391191,17.90367627,235.33,235.27,29.8]
[1759769391386,17.90367627,235.33,235.3,0.69]
[1759769391692,17.90367627,235.33,235.27,29.8]
[1759769391693,3.03094437,235.31,235.27,29.8]
[1759769391995,4.24935197,235.33,235.28,0.69]
[1759769392194,7.28029634,235.33,235.29,0.69]
[1759769392409,17.90367627,235.33,235.3,0.69]
[1759769392704,17.90367627,235.33,235.31,0.69]
[1759769393003,14.8727319,235.33,235.31,0.69]
[1759769393382,14.8727319,235.33,235.27,29.8]
[1759769393691,14.8727319,235.33,235.28,0.69]
[1759769394783,14.8727319,235.33,235.27,29.8]
[1759769394784,14.8727319,235.33,235.29,0.69]
[1759769394983,14.8727319,235.33,235.3,0.69]
[1759769395202,14.8727319,235.33,235.27,29.8]
[1759769395389,14.8727319,235.33,235.28,0.69]
[1759769395904,17.90367627,235.33,235.29,0.69]
[1759769396106,17.90367627,235.33,235.3,0.69]
[1759769396708,17.90367627,235.33,235.29,29.8]
[1759769396892,3.03094437,235.32,235.29,30.49]
[1759769397299,3.03094437,235.31,235.25,0.69]
[1759769397491,3.53094437,235.32,235.26,29.8]
[1759769397912,3.03094437,235.31,235.26,29.8]
[1759769398109,3.03094437,235.31,235.27,0.69]
[1759769398414,3.03094437,235.32,235.28,0.69]
[1759769398622,14.8727319,235.33,235.28,0.69]
[1759769398623,17.90367627,235.33,235.28,30.49]
[1759769398921,4.24971314,235.31,235.28,29.8]
[1759769399215,4.24971314,235.31,235.29,0.69]
[1759769400113,14.87336392,235.32,235.29,0.69]
[1759769400294,14.87336392,235.32,235.28,29.8]
[1759769400488,14.87336392,235.32,235.3,0.69]
[1759769400798,14.87336392,235.32,235.3,30.49]
[1759769401414,14.87336392,235.32,235.3,29.8]
[1759769401911,14.87336392,235.32,235.3,30.49]
[1759769402106,16.81388453,235.32,235.3,29.8]
[1759769402302,16.81388453,235.32,235.27,0.69]
[1759769402303,17.31388453,235.32,235.27,0.69]
[1759769402615,1.94052061,235.3,235.27,29.8]
[1759769402813,1.94052061,235.3,235.26,29.8]
[1759769403019,1.94052061,235.3,235.26,30.49]
[1759769403216,1.94052061,235.3,235.27,0.69]
[1759769404200,4.25007437,235.29,235.27,0.69]
[1759769405217,4.25007437,235.29,235.28,0.69]
[1759769406429,10.62486676,235.3,235.28,0.69]
[1759769406622,10.62486676,235.3,235.26,29.8]
[1759769406919,1.94052061,235.29,235.26,0.69]
[1759769407128,10.62486676,235.3,235.27,0.69]
[1759769407294,10.62486676,235.3,235.28,0.69]
[1759769407893,4.24971314,235.31,235.29,0.69]
[1759769408720,10.62353926,235.33,235.3,0.69]
[1759769409410,4.24917141,235.34,235.31,0.69]
[1759769409624,4.24917141,235.34,235.32,29.78]
[1759769409823,4.24917141,235.34,235.33,0.69]
[1759769410228,21.74011519,235.41,235.33,0.69]
[1759769410229,10.62095452,235.39,235.33,0.69]
[1759769410829,14.86922335,235.39,235.33,0.69]
[1759769411131,1.94052061,235.35,235.33,29.78]
[1759769411434,1.94052061,235.36,235.33,29.78]
[1759769411612,0.5,235.38,235.33,29.78]
[1759769411806,14.86922335,235.39,235.33,29.78]
[1759769412147,14.86922335,235.39,235.34,0.69]
[1759769412321,14.86922335,235.39,235.35,0.69]
[1759769412495,12.56147513,235.39,235.35,0.69]
[1759769412700,12.56147513,235.39,235.36,0.69]
[1759769412916,10.62095452,235.39,235.36,0.69]
[1759769413525,10.62095452,235.39,235.37,0.69]
[1759769414423,4.2479079,235.41,235.38,0.69]
[1759769414718,10.61948957,235.42,235.38,0.69]
[1759769414719,16.80773764,235.42,235.38,0.69]
[1759769414930,1.94052061,235.41,235.38,0.69]
[1759769415118,1.94052061,235.41,235.36,0.69]
[1759769415308,14.86721703,235.42,235.37,29.78]
[1759769415621,14.86721703,235.42,235.38,0.69]
[1759769416011,14.86721703,235.42,235.39,0.69]
[1759769418405,14.86721703,235.42,235.37,29.78]
[1759769418604,14.86721703,235.42,235.38,0.69]
[1759769418920,14.86721703,235.42,235.39,29.78]
[1759769420328,14.8689409,235.39,235.33,0.69]
[1759769420532,14.8689409,235.39,235.34,30.47]
[1759769420830,14.8689409,235.39,235.35,0.69]
[1759769421127,14.8689409,235.39,235.36,0.69]
[1759769421330,14.8689409,235.39,235.37,0.69]
[1759769421640,4.24826883,235.39,235.37,0.69]
[1759769421927,4.24826883,235.39,235.38,0.69]
[1759769422530,14.86704612,235.42,235.38,0.69]
[1759769423123,16.80756673,235.42,235.38,0.69]
[1759769423420,4.24772746,235.42,235.39,0.69]
[1759769423618,4.24772746,235.42,235.37,0.69]
[1759769423821,6.18824807,235.42,235.38,0.69]
[1759769424022,6.18824807,235.42,235.39,29.78]
[1759769424809,16.80756673,235.42,235.38,0.69]
[1759769425014,16.80756673,235.42,235.33,20.8]
[1759769425015,1.94052061,235.41,235.39,29.78]
[1759769425810,1.94052061,235.4,235.39,29.78]
[1759769426009,6.18860897,235.4,235.39,29.78]
[1759769426836,4.24808836,235.4,235.39,29.78]
[1759769427208,4.24808836,235.4,235.38,29.78]
[1759769428320,4.24808836,235.4,235.38,30.47]
[1759769428515,4.24808836,235.4,235.38,29.78]
[1759769429330,4.24808836,235.4,235.38,30.47]
[1759769430107,10.61931866,235.42,235.38,30.47]
[1759769430330,12.55983927,235.42,235.38,30.47]
[1759769431630,16.80756673,235.42,235.39,29.78]
[1759769431827,16.80756673,235.42,235.39,30.47]
[1759769432013,14.86704612,235.42,235.39,30.47]
[1759769432332,14.86704612,235.42,235.39,29.78]
[1759769432535,4.24772746,235.42,235.4,0.69]
[1759769432838,4.24772746,235.42,235.41,0.69]
[1759769433329,4.24772746,235.42,235.41,30.47]
[1759769433728,4.24718623,235.45,235.41,30.47]
[1759769433947,4.24718623,235.45,235.42,0.69]
[1759769434517,4.24699071,235.47,235.42,0.69]
[1759769435416,4.24574364,235.53,235.43,10.87647521]
[1759769435635,4.24574364,235.53,235.44,0.66]
[1759769435916,14.85965717,235.54,235.44,0.66]
[1759769439339,14.85965717,235.54,235.45,50.56]
[1759769439340,1.94052061,235.53,235.45,50.56]
[1759769439538,1.94052061,235.53,235.46,0.66]
[1759769440040,1.94052061,235.51,235.47,29.76]
[1759769440421,14.86199575,235.5,235.47,29.76]
[1759769440825,14.86199575,235.5,235.48,29.76]
[1759769441028,1.94052061,235.49,235.48,29.76]
[1759769441427,2.44052061,235.49,235.42,0.66]
[1759769441623,2.44052061,235.49,235.43,29.76]
[1759769441624,1.94052061,235.47,235.43,29.76]
[1759769441819,1.94052061,235.47,235.4,0.66]
[1759769442027,1.94052061,235.47,235.41,29.76]
[1759769442228,1.94052061,235.47,235.41,30.42]
[1759769442423,4.24700586,235.46,235.42,0.66]
[1759769442632,4.24683285,235.47,235.42,0.66]
[1759769443019,6.18713613,235.49,235.42,0.66]
[1759769443214,4.24661552,235.49,235.42,0.66]
[1759769443931,4.24661552,235.49,235.43,29.76]
[1759769444135,4.24661552,235.49,235.44,0.66]
[1759769444519,14.86199575,235.5,235.44,0.66]
[1759769444918,4.2462845,235.5,235.44,0.66]
[1759769445342,4.2462845,235.5,235.45,29.76]
[1759769445544,4.2462845,235.5,235.46,0.66]
[1759769446043,4.2462845,235.5,235.47,0.66]
[1759769446218,4.2462845,235.5,235.45,29.76]
[1759769446419,4.2462845,235.5,235.47,0.66]
[1759769446817,4.2462845,235.5,235.48,29.76]
[1759769447234,4.2462845,235.5,235.49,29.76]
[1759769447435,14.86199575,235.5,235.49,29.76]
[1759769447635,4.2462845,235.5,235.49,29.76]
[1759769448225,4.24610419,235.51,235.4,4.24808836]
[1759769448437,14.86136468,235.51,235.41,41.30647521]
[1759769448637,14.86136468,235.51,235.43,10.87647521]
[1759769448842,14.86136468,235.51,235.44,0.67]
[1759769449742,4.24646481,235.49,235.45,29.76]
[1759769449945,4.24646481,235.49,235.45,30.43]
[1759769450349,4.24646481,235.49,235.43,10.87647521]
[1759769450547,4.24646481,235.49,235.46,0.67]
[1759769450729,4.24646481,235.49,235.44,29.76]
[1759769450730,4.24646481,235.49,235.47,0.67]
[1759769452953,10.61526049,235.51,235.47,0.67]
[1759769453128,4.24592391,235.52,235.47,0.67]
[1759769453129,6.18644452,235.52,235.47,0.67]
[1759769453446,4.24592391,235.52,235.47,0.67]
[1759769454229,4.24592391,235.52,235.48,29.76]
[1759769454425,4.24592391,235.52,235.49,0.67]
[1759769454629,4.24561601,235.54,235.49,0.67]
[1759769455056,2.04052061,235.55,235.49,0.67]
[1759769455057,0.1,235.55,235.54,20.8]
[1759769455245,0.1,235.55,235.54,51.23]
[1759769455638,0.1,235.55,235.54,30.43]
[1759769456158,0.1,235.55,235.54,0.67]
[1759769456541,0.1,235.55,235.54,30.43]
[1759769460726,0.1,235.55,235.53,20.8]
[1759769461049,0.1,235.55,235.53,0.67]
[1759769461050,4.34538314,235.55,235.53,0.67]
[1759769461252,4.34538314,235.55,235.54,29.74]
[1759769461954,4.34538314,235.55,235.54,30.41]
[1759769462160,4.34538314,235.55,235.54,0.552339]
[1759769463237,4.34538314,235.55,235.54,30.292339]
[1759769463648,0.1,235.55,235.54,30.292339]
[1759769466637,0.1,235.55,235.54,45.41437759]
[1759769467140,0.1,235.55,235.54,41.16881421]
[1759769467548,0.1,235.55,235.54,11.42881421]
[1759769467733,0.1,235.55,235.54,41.16881421]
[1759769468261,0.1,235.55,235.54,11.42881421]
[1759769468437,0.1,235.55,235.54,41.16881421]
[1759769468964,0.72,235.55,235.51,4.34503661]
[1759769469277,3.02481779,235.53,235.52,29.74]
[1759769469567,4.96539414,235.55,235.52,29.74]
[1759769469865,4.34539414,235.55,235.52,30.41]
[1759769470365,4.34539414,235.55,235.52,29.74]
[1759769470970,4.34539414,235.55,235.5,0.67]
[1759769471168,3.64481779,235.54,235.51,29.74]
[1759769471376,3.02481779,235.54,235.51,29.74]
[1759769471552,7.37021193,235.55,235.51,29.74]
[1759769471752,0.62,235.54,235.51,29.74]
[1759769471944,7.37021193,235.55,235.51,29.74]
[1759769472144,7.37021193,235.55,235.51,30.41]
[1759769472349,4.34539414,235.55,235.51,30.41]
[1759769472756,7.37021193,235.55,235.51,30.41]
[1759769473568,7.37021193,235.55,235.51,29.74]
[1759769473763,7.37021193,235.55,235.51,30.41]
[1759769473951,7.99021193,235.55,235.51,29.74]
[1759769474262,7.27056143,235.53,235.44,8.49209035]
[1759769474465,7.27056143,235.53,235.45,62.08647521]
[1759769474640,17.88492053,235.53,235.45,62.08647521]
[1759769474842,17.88492053,235.53,235.46,29.74]
[1759769475550,3.02481779,235.52,235.46,29.74]
[1759769475750,3.02481779,235.52,235.45,21.47]
[1759769475959,3.02481779,235.51,235.46,29.74]
[1759769476161,3.64481779,235.51,235.46,29.74]
[1759769476347,4.2462845,235.5,235.46,29.74]
[1759769476562,7.89110229,235.5,235.43,33.77]
[1759769476750,7.27093999,235.51,235.47,0.67]
[1759769476958,7.27093999,235.51,235.48,29.74]
[1759769477773,3.02481779,235.5,235.44,0.67]
[1759769477945,3.02481779,235.5,235.45,29.74]
[1759769477946,3.02481779,235.47,235.45,29.74]
[1759769478268,3.02481779,235.49,235.45,29.74]
[1759769478473,4.24664515,235.48,235.45,29.74]
[1759769480667,3.02481779,235.48,235.45,29.74]
[1759769480850,14.86262685,235.49,235.45,29.74]
[1759769481053,0.62,235.48,235.45,29.74]
[1759769481560,3.02481779,235.46,235.38,5.75614273]
[1759769481762,3.02481779,235.43,235.39,29.74]
[1759769482071,3.02481779,235.42,235.36,0.71]
[1759769482273,3.02481779,235.4,235.33,5.46978743]
[1759769482459,14.8689409,235.39,235.34,29.74]
[1759769482665,14.8689409,235.39,235.33,0.71]
[1759769482666,15.4889409,235.39,235.33,0.71]
[1759769482862,15.4889409,235.39,235.34,29.74]
[1759769483158,15.4889409,235.39,235.3,0.2]
[1759769483159,14.8689409,235.39,235.3,0.2]
[1759769483363,3.02481779,235.36,235.31,29.74]
[1759769483562,3.64481779,235.35,235.31,29.74]
[1759769484066,3.02481779,235.35,235.31,29.74]
[1759769484264,3.02481779,235.35,235.3,0.2]
[1759769484453,4.24917141,235.34,235.32,29.74]
[1759769484773,4.24917141,235.34,235.3,0.91]
[1759769484960,4.24917141,235.34,235.33,29.76]
[1759769485270,7.27384529,235.35,235.33,29.76]
[1759769486374,7.27384529,235.35,235.3,0.91]
[1759769486567,7.27357748,235.37,235.31,30.45]
[1759769486778,7.27357748,235.37,235.32,0.71]
[1759769486969,7.27357748,235.37,235.33,0.71]
[1759769487781,7.27357748,235.37,235.31,30.45]
[1759769487963,4.24875969,235.37,235.31,30.45]
[1759769488576,7.27357748,235.37,235.31,30.45]
[1759769489452,4.8684274,235.39,235.31,29.74]
[1759769489656,4.2484274,235.39,235.32,0.71]
[1759769491869,4.2484274,235.39,235.33,29.76]
[1759769492857,14.86909947,235.39,235.33,29.76]
[1759769493378,17.89391726,235.39,235.33,29.76]
[1759769493671,17.89391726,235.39,235.3,21.0]
[1759769493672,3.02481779,235.37,235.3,0.2]
[1759769493847,0.62,235.36,235.31,29.76]
[1759769494459,3.02481779,235.35,235.32,29.76]
[1759769494774,3.02481779,235.33,235.3,0.2]
[1759769494948,3.02481779,235.31,235.3,0.2]
[1759769495356,3.64481779,235.31,235.3,0.2]
[1759769496172,4.24953255,235.32,235.3,0.2]
[1759769496371,14.87091515,235.36,235.3,0.89]
[1759769496576,4.24881033,235.36,235.31,0.69]
[1759769496773,4.24881033,235.36,235.32,0.69]
[1759769496957,4.24844931,235.38,235.33,30.45]
[1759769497469,18.51439038,235.38,235.33,29.76]
[1759769497776,3.02481779,235.37,235.34,29.76]
[1759769499169,17.89565395,235.36,235.33,29.76]
[1759769499477,3.02481779,235.34,235.32,29.76]
[1759769500090,3.02481779,235.33,235.3,29.98]
[1759769500293,3.02481779,235.34,235.3,29.98]
[1759769500491,3.02481779,235.34,235.3,30.67]
[1759769501770,3.02481779,235.34,235.3,0.89]
[1759769501972,3.02481779,235.34,235.31,29.78]
[1759769502483,4.24935197,235.33,235.31,29.78]
[1759769505484,14.8727319,235.33,235.3,0.2]
[1759769505789,14.8727319,235.33,235.3,30.65]
[1759769506585,14.87083616,235.36,235.3,30.65]
[1759769506777,3.02481779,235.34,235.3,30.65]
[1759769508765,4.24935197,235.33,235.31,0.72]
[1759769510870,4.24917141,235.34,235.31,0.72]
[1759769511573,10.62099081,235.39,235.32,0.72]
[1759769511880,13.6458086,235.39,235.32,0.72]
[1759769512789,17.89407743,235.39,235.32,0.72]
[1759769513787,3.02481779,235.38,235.32,0.72]
[1759769514381,3.02481779,235.38,235.32,30.48]
[1759769514981,14.87020435,235.37,235.32,30.48]
[1759769515190,14.87020435,235.37,235.33,0.72]
[1759769515979,17.89502214,235.37,235.33,0.72]
[1759769516922,17.89502214,235.37,235.32,29.76]
[1759769517079,17.89502214,235.37,235.33,0.72]
[1759769517389,17.89502214,235.37,235.32,29.76]
[1759769517606,3.02481779,235.35,235.3,0.2]
[1759769517797,3.02481779,235.35,235.31,29.76]
[1759769518100,3.02481779,235.35,235.31,30.48]
[1759769518296,14.87020435,235.37,235.31,29.76]
[1759769518496,3.02481779,235.35,235.31,30.48]
[1759769519296,4.24917141,235.34,235.32,0.72]
[1759769519714,4.24917141,235.34,235.3,0.2]
[1759769519715,14.87209993,235.34,235.3,0.2]
[1759769519886,17.89691772,235.34,235.3,30.68]
[1759769520291,14.87209993,235.34,235.3,30.68]
[1759769520506,14.87209993,235.34,235.31,0.72]
[1759769520680,14.87209993,235.34,235.32,0.72]
[1759769521087,3.64481779,235.33,235.3,0.2]
[1759769521306,4.24953255,235.32,235.3,0.2]
[1759769521909,3.64481779,235.31,235.3,0.2]
[1759769522107,3.02481779,235.31,235.3,0.2]
[1759769523306,3.02481779,235.32,235.3,0.2]
[1759769523507,14.8727319,235.33,235.3,0.2]
[1759769523815,3.02481779,235.32,235.3,0.2]